[Event "January 9 Early 2024"]
[Site "https://www.chess.com"]
[Date "2024.01.11"]
[Round "1"]
[White "Wantiez, Fabrice"]
[Black "Carow, Johannes"]
[Result "0-1"]
[Board "116"]
[TimeControl "180+1"]
[WhiteFideId "202274"]
[BlackFideId "24692050"]
[WhiteElo "2384"]
[BlackElo "2711"]
[WhiteTeam "BEL"]
[BlackTeam "GER"]
[WhiteClock "0:00:54"]
[BlackClock "0:00:28"]

1. e4 {[%clk 0:03:00]}  c5 {[%clk 0:02:59]} 2. Nf3 {[%clk 0:03:01]}  e6 {[%clk 0:02:59]} 3. d4 {[%clk 0:03:01]}  cxd4 {[%clk 0:03:00]} 4. Nxd4 {[%clk 0:03:02]}  a6 {[%clk 0:02:59]} 5. Nc3 {[%clk 0:03:02]}  Qc7 {[%clk 0:02:59]} 6. Be2 {[%clk 0:03:03]}  b5 {[%clk 0:02:58]} 7. O-O {[%clk 0:03:01]}  Bb7 {[%clk 0:02:58]} 8. Re1 {[%clk 0:02:58]}  Nc6 {[%clk 0:02:58]} 9. Nxc6 {[%clk 0:02:52]}  dxc6 {[%clk 0:02:59]} 10. Bf1 {[%clk 0:02:51]}  e5 {[%clk 0:02:53]} 11. Be3 {[%clk 0:02:44]}  Nf6 {[%clk 0:02:52]} 12. f3 {[%clk 0:02:42]}  Bb4 {[%clk 0:02:50]} 13. a3 {[%clk 0:02:36]}  Ba5 {[%clk 0:02:43]} 14. Qe2 {[%clk 0:02:33]}  Qe7 {[%clk 0:02:10]} 15. Qf2 {[%clk 0:02:30]}  Nd7 {[%clk 0:02:10]} 16. b4 {[%clk 0:02:26]}  Bc7 {[%clk 0:02:10]} 17. Qg3 {[%clk 0:02:16]}  O-O {[%clk 0:02:06]} 18. Red1 {[%clk 0:02:02]}  Rfd8 {[%clk 0:01:59]} 19. h4 {[%clk 0:01:56]}  a5 {[%clk 0:01:56]} 20. h5 {[%clk 0:01:26]}  axb4 {[%clk 0:01:46]} 21. h6 {[%clk 0:01:26]}  g6 {[%clk 0:01:41]} 22. axb4 {[%clk 0:01:25]}  Qxb4 {[%clk 0:01:31]} 23. Rxa8 {[%clk 0:01:24]}  Bxa8 {[%clk 0:01:31]} 24. Nb1 {[%clk 0:01:17]}  Qe7 {[%clk 0:01:24]} 25. Bg5 {[%clk 0:01:12]}  f6 {[%clk 0:01:22]} 26. Be3 {[%clk 0:01:12]}  Nf8 {[%clk 0:01:13]} 27. Rxd8 {[%clk 0:01:11]}  Qxd8 {[%clk 0:01:14]} 28. c4 {[%clk 0:01:11]}  Bb6 {[%clk 0:00:47]} 29. Bxb6 {[%clk 0:01:09]}  Qxb6+ {[%clk 0:00:48]} 30. Kh2 {[%clk 0:01:09]}  Ne6 {[%clk 0:00:45]} 31. cxb5 {[%clk 0:01:07]}  cxb5 {[%clk 0:00:46]} 32. Nc3 {[%clk 0:01:07]}  b4 {[%clk 0:00:45]} 33. Nd5 {[%clk 0:01:08]}  Bxd5 {[%clk 0:00:44]} 34. exd5 {[%clk 0:01:09]}  Nf4 {[%clk 0:00:36]} 35. Bc4 {[%clk 0:01:00]}  Kf8 {[%clk 0:00:33]} 36. Qe1 {[%clk 0:01:00]}  Ke7 {[%clk 0:00:32]} 37. Qe4 {[%clk 0:00:58]}  Qc5 {[%clk 0:00:31]} 38. d6+ {[%clk 0:00:57]}  Kxd6 {[%clk 0:00:31]} 39. Bb3 {[%clk 0:00:57]}  f5 {[%clk 0:00:28]} 40. Qb7 {[%clk 0:00:57]}  Ne2 {[%clk 0:00:27]} 41. Qxh7 {[%clk 0:00:55]}  Qg1+ {[%clk 0:00:27]} 42. Kh3 {[%clk 0:00:54]}  Qh1# {[%clk 0:00:28]} 0-1

[Event "January 9 Early 2024"]
[Site "https://www.chess.com"]
[Date "2024.01.11"]
[Round "1"]
[White "Lund, Gunnar"]
[Black "Barbot, Pierre"]
[Result "1-0"]
[Board "119"]
[TimeControl "180+1"]
[WhiteFideId "1520814"]
[BlackFideId "663727"]
[WhiteElo "2649"]
[BlackElo "2309"]
[WhiteTeam "NOR"]
[BlackTeam "FRA"]
[WhiteClock "0:00:59"]
[BlackClock "0:00:01"]

1. d4 {[%clk 0:02:59]}  Nf6 {[%clk 0:02:59]} 2. c4 {[%clk 0:02:59]}  g6 {[%clk 0:02:59]} 3. Nf3 {[%clk 0:02:59]}  Bg7 {[%clk 0:02:58]} 4. Nc3 {[%clk 0:02:55]}  d5 {[%clk 0:02:58]} 5. Qb3 {[%clk 0:02:53]}  dxc4 {[%clk 0:02:52]} 6. Qxc4 {[%clk 0:02:53]}  a6 {[%clk 0:02:53]} 7. e4 {[%clk 0:02:31]}  b5 {[%clk 0:02:41]} 8. Qb3 {[%clk 0:02:30]}  c5 {[%clk 0:02:31]} 9. dxc5 {[%clk 0:02:29]}  Bb7 {[%clk 0:02:15]} 10. Be2 {[%clk 0:02:11]}  O-O {[%clk 0:01:57]} 11. O-O {[%clk 0:02:08]}  Nxe4 {[%clk 0:01:53]} 12. Nxe4 {[%clk 0:02:05]}  Bxe4 {[%clk 0:01:54]} 13. Bf4 {[%clk 0:02:06]}  Nd7 {[%clk 0:01:41]} 14. Rac1 {[%clk 0:02:00]}  Rc8 {[%clk 0:01:23]} 15. Rfd1 {[%clk 0:01:59]}  Qe8 {[%clk 0:01:23]} 16. Qa3 {[%clk 0:01:55]}  e5 {[%clk 0:01:05]} 17. Bd2 {[%clk 0:01:48]}  Bxf3 {[%clk 0:00:31]} 18. Bxf3 {[%clk 0:01:45]}  e4 {[%clk 0:00:31]} 19. Be2 {[%clk 0:01:45]}  Ne5 {[%clk 0:00:31]} 20. Qxa6 {[%clk 0:01:43]}  Nd3 {[%clk 0:00:18]} 21. Bxd3 {[%clk 0:01:40]}  exd3 {[%clk 0:00:19]} 22. Bc3 {[%clk 0:01:32]}  Rxc5 {[%clk 0:00:12]} 23. Qd6 {[%clk 0:01:18]}  Rc4 {[%clk 0:00:04]} 24. Qxd3 {[%clk 0:01:15]}  Bxc3 {[%clk 0:00:02]} 25. Rxc3 {[%clk 0:01:14]}  Qc6 {[%clk 0:00:02]} 26. Rdc1 {[%clk 0:01:12]}  Rc8 {[%clk 0:00:02]} 27. Rxc4 {[%clk 0:01:12]}  bxc4 {[%clk 0:00:03]} 28. Qc3 {[%clk 0:01:12]}  Qe4 {[%clk 0:00:02]} 29. b3 {[%clk 0:01:07]}  Re8 {[%clk 0:00:01]} 30. bxc4 {[%clk 0:01:06]}  Qc6 {[%clk 0:00:01]} 31. c5 {[%clk 0:01:04]}  Re2 {[%clk 0:00:01]} 32. Rc2 {[%clk 0:00:59]} 1-0

[Event "January 9 Early 2024"]
[Site "https://www.chess.com"]
[Date "2024.01.11"]
[Round "1"]
[White "Iskusnyh, Sergei"]
[Black "Passen, Brett"]
[Result "1-0"]
[Board "120"]
[TimeControl "180+1"]
[WhiteFideId "4120027"]
[BlackFideId "30972167"]
[WhiteElo "2656"]
[BlackElo "2320"]
[WhiteTeam "RUS"]
[BlackTeam "USA"]
[WhiteClock "0:00:54"]
[BlackClock "0:00:06"]

1. d4 {[%clk 0:03:00]}  Nf6 {[%clk 0:02:59]} 2. c4 {[%clk 0:03:00]}  e6 {[%clk 0:03:00]} 3. g3 {[%clk 0:03:00]}  Bb4+ {[%clk 0:02:55]} 4. Bd2 {[%clk 0:02:56]}  Be7 {[%clk 0:02:55]} 5. Bg2 {[%clk 0:02:55]}  d5 {[%clk 0:02:55]} 6. Nf3 {[%clk 0:02:55]}  O-O {[%clk 0:02:54]} 7. O-O {[%clk 0:02:55]}  Nbd7 {[%clk 0:02:54]} 8. Qc2 {[%clk 0:02:53]}  c6 {[%clk 0:02:54]} 9. b3 {[%clk 0:02:52]}  b6 {[%clk 0:02:41]} 10. Bc3 {[%clk 0:02:50]}  Ba6 {[%clk 0:02:33]} 11. Nbd2 {[%clk 0:02:50]}  Rc8 {[%clk 0:02:32]} 12. e4 {[%clk 0:02:46]}  dxe4 {[%clk 0:02:03]} 13. Nxe4 {[%clk 0:02:46]}  Nxe4 {[%clk 0:02:04]} 14. Qxe4 {[%clk 0:02:46]}  Nf6 {[%clk 0:02:05]} 15. Qc2 {[%clk 0:02:39]}  b5 {[%clk 0:01:55]} 16. Ne5 {[%clk 0:02:33]}  bxc4 {[%clk 0:01:49]} 17. bxc4 {[%clk 0:02:34]}  c5 {[%clk 0:01:35]} 18. Nc6 {[%clk 0:01:58]}  Rxc6 {[%clk 0:01:32]} 19. Bxc6 {[%clk 0:01:59]}  cxd4 {[%clk 0:01:33]} 20. Rfd1 {[%clk 0:01:58]}  Qc7 {[%clk 0:01:26]} 21. Qa4 {[%clk 0:01:53]}  dxc3 {[%clk 0:00:50]} 22. Qxa6 {[%clk 0:01:52]}  Bc5 {[%clk 0:00:50]} 23. Bf3 {[%clk 0:01:43]}  Bb6 {[%clk 0:00:41]} 24. Rac1 {[%clk 0:01:38]}  Qc5 {[%clk 0:00:38]} 25. Rf1 {[%clk 0:01:26]}  c2 {[%clk 0:00:20]} 26. Rxc2 {[%clk 0:01:21]}  Qf5 {[%clk 0:00:21]} 27. Rc3 {[%clk 0:01:11]}  h5 {[%clk 0:00:10]} 28. Qb5 {[%clk 0:01:03]}  Qg6 {[%clk 0:00:06]} 29. c5 {[%clk 0:01:03]}  Bc7 {[%clk 0:00:06]} 30. Qa4 {[%clk 0:00:55]}  h4 {[%clk 0:00:06]} 31. Qxh4 {[%clk 0:00:54]} 1-0

[Event "January 9 Early 2024"]
[Site "https://www.chess.com"]
[Date "2024.01.11"]
[Round "1"]
[White "Novak, Ratko"]
[Black "Yuan, Qingyu"]
[Result "0-1"]
[Board "121"]
[TimeControl "180+1"]
[WhiteFideId "14511827"]
[BlackFideId "8609772"]
[WhiteElo "2427"]
[BlackElo "2766"]
[WhiteTeam "CRO"]
[BlackTeam "CHN"]
[WhiteClock "0:00:16"]
[BlackClock "0:00:38"]

1. d4 {[%clk 0:03:00]}  d5 {[%clk 0:02:57]} 2. c4 {[%clk 0:03:00]}  e6 {[%clk 0:02:58]} 3. cxd5 {[%clk 0:03:01]}  exd5 {[%clk 0:02:58]} 4. Nc3 {[%clk 0:03:02]}  c6 {[%clk 0:02:59]} 5. f3 {[%clk 0:03:02]}  Bd6 {[%clk 0:02:56]} 6. e4 {[%clk 0:03:02]}  Qh4+ {[%clk 0:02:52]} 7. Ke2 {[%clk 0:02:43]}  dxe4 {[%clk 0:02:38]} 8. fxe4 {[%clk 0:02:43]}  Ne7 {[%clk 0:02:34]} 9. Nf3 {[%clk 0:02:43]}  Bg4 {[%clk 0:02:32]} 10. e5 {[%clk 0:02:42]}  Bc7 {[%clk 0:02:28]} 11. Be3 {[%clk 0:02:40]}  O-O {[%clk 0:02:26]} 12. Bf2 {[%clk 0:02:37]}  Qh5 {[%clk 0:02:24]} 13. Kd2 {[%clk 0:02:34]}  Nd7 {[%clk 0:02:22]} 14. Bd3 {[%clk 0:02:32]}  f6 {[%clk 0:02:15]} 15. Qb3+ {[%clk 0:02:19]}  Kh8 {[%clk 0:02:11]} 16. Qxb7 {[%clk 0:02:17]}  Rac8 {[%clk 0:01:35]} 17. exf6 {[%clk 0:02:02]}  Nxf6 {[%clk 0:01:30]} 18. Rae1 {[%clk 0:01:55]}  Ned5 {[%clk 0:01:25]} 19. Kc1 {[%clk 0:01:45]}  Bxf3 {[%clk 0:01:23]} 20. gxf3 {[%clk 0:01:45]}  Qxf3 {[%clk 0:01:24]} 21. Nxd5 {[%clk 0:01:07]}  cxd5 {[%clk 0:01:15]} 22. Be3 {[%clk 0:01:03]}  Bf4+ {[%clk 0:01:08]} 23. Kb1 {[%clk 0:01:03]}  Bxe3 {[%clk 0:01:07]} 24. Rhf1 {[%clk 0:01:01]}  Bf2 {[%clk 0:00:57]} 25. Qa6 {[%clk 0:00:43]}  Qg2 {[%clk 0:00:48]} 26. Re7 {[%clk 0:00:36]}  Bxd4 {[%clk 0:00:46]} 27. Rb7 {[%clk 0:00:24]}  Rb8 {[%clk 0:00:40]} 28. a3 {[%clk 0:00:20]}  Be5 {[%clk 0:00:39]} 29. b4 {[%clk 0:00:16]}  Qb2# {[%clk 0:00:38]} 0-1

[Event "January 9 Early 2024"]
[Site "https://www.chess.com"]
[Date "2024.01.11"]
[Round "1"]
[White "Harriott, Tyrell"]
[Black "Injac, Teodora"]
[Result "1-0"]
[Board "122"]
[TimeControl "180+1"]
[WhiteFideId "2086484"]
[BlackFideId "932400"]
[WhiteElo "2347"]
[BlackElo "2645"]
[WhiteTeam "USA"]
[BlackTeam "SRB"]
[WhiteClock "0:00:57"]
[BlackClock "0:00:03"]

1. d4 {[%clk 0:02:58]}  Nf6 {[%clk 0:02:59]} 2. e3 {[%clk 0:02:57]}  d5 {[%clk 0:02:59]} 3. Bd3 {[%clk 0:02:56]}  e6 {[%clk 0:02:59]} 4. f4 {[%clk 0:02:56]}  b6 {[%clk 0:02:58]} 5. c3 {[%clk 0:02:56]}  Be7 {[%clk 0:02:52]} 6. Nf3 {[%clk 0:02:55]}  O-O {[%clk 0:02:52]} 7. O-O {[%clk 0:02:55]}  Ba6 {[%clk 0:02:52]} 8. Bxa6 {[%clk 0:02:55]}  Nxa6 {[%clk 0:02:52]} 9. Nbd2 {[%clk 0:02:56]}  c5 {[%clk 0:02:51]} 10. Ne5 {[%clk 0:02:56]}  Qc8 {[%clk 0:02:43]} 11. Qf3 {[%clk 0:02:53]}  Qb7 {[%clk 0:02:41]} 12. g4 {[%clk 0:02:53]}  b5 {[%clk 0:02:32]} 13. a3 {[%clk 0:02:51]}  Rac8 {[%clk 0:02:17]} 14. g5 {[%clk 0:02:48]}  Ne4 {[%clk 0:02:00]} 15. Nxe4 {[%clk 0:02:46]}  dxe4 {[%clk 0:02:01]} 16. Qh5 {[%clk 0:02:45]}  cxd4 {[%clk 0:01:46]} 17. exd4 {[%clk 0:02:44]}  Nc7 {[%clk 0:01:45]} 18. Be3 {[%clk 0:02:32]}  Nd5 {[%clk 0:01:45]} 19. Rae1 {[%clk 0:02:31]}  a5 {[%clk 0:01:42]} 20. Bd2 {[%clk 0:02:28]}  b4 {[%clk 0:01:35]} 21. axb4 {[%clk 0:02:18]}  axb4 {[%clk 0:01:36]} 22. c4 {[%clk 0:02:18]}  Nb6 {[%clk 0:01:26]} 23. b3 {[%clk 0:02:18]}  Ra8 {[%clk 0:01:23]} 24. Re3 {[%clk 0:02:12]}  g6 {[%clk 0:00:50]} 25. Qh6 {[%clk 0:02:10]}  Bd8 {[%clk 0:00:23]} 26. Rh3 {[%clk 0:01:46]}  f5 {[%clk 0:00:23]} 27. gxf6 {[%clk 0:01:45]}  Bxf6 {[%clk 0:00:22]} 28. Rg3 {[%clk 0:01:34]}  Qg7 {[%clk 0:00:22]} 29. Qh3 {[%clk 0:01:34]}  Bxe5 {[%clk 0:00:22]} 30. Qxe6+ {[%clk 0:01:24]}  Kh8 {[%clk 0:00:23]} 31. dxe5 {[%clk 0:01:20]}  Nd7 {[%clk 0:00:20]} 32. Bxb4 {[%clk 0:01:13]}  Rfe8 {[%clk 0:00:20]} 33. Qd5 {[%clk 0:01:06]}  Ra2 {[%clk 0:00:05]} 34. Bc3 {[%clk 0:00:59]}  Rc2 {[%clk 0:00:03]} 35. Bd4 {[%clk 0:00:57]} 1-0

[Event "January 9 Early 2024"]
[Site "https://www.chess.com"]
[Date "2024.01.11"]
[Round "1"]
[White "Smirnov, Timofey"]
[Black "Jeet, Jain"]
[Result "0-1"]
[Board "124"]
[TimeControl "180+1"]
[WhiteFideId "24176427"]
[BlackFideId "5073022"]
[WhiteElo "1996"]
[BlackElo "2548"]
[WhiteTeam "RUS"]
[BlackTeam "IND"]
[WhiteClock "0:00:02"]
[BlackClock "0:01:32"]

1. d4 {[%clk 0:03:00]}  c5 {[%clk 0:02:56]} 2. c3 {[%clk 0:03:00]}  Nf6 {[%clk 0:02:52]} 3. Bf4 {[%clk 0:02:57]}  b6 {[%clk 0:02:51]} 4. e3 {[%clk 0:02:57]}  d6 {[%clk 0:02:50]} 5. h3 {[%clk 0:02:54]}  Bb7 {[%clk 0:02:50]} 6. Nf3 {[%clk 0:02:55]}  g6 {[%clk 0:02:49]} 7. Be2 {[%clk 0:02:54]}  Bg7 {[%clk 0:02:49]} 8. O-O {[%clk 0:02:53]}  O-O {[%clk 0:02:49]} 9. a4 {[%clk 0:02:52]}  a6 {[%clk 0:02:49]} 10. Nbd2 {[%clk 0:02:48]}  Nbd7 {[%clk 0:02:48]} 11. Re1 {[%clk 0:02:48]}  Rc8 {[%clk 0:02:48]} 12. Bh2 {[%clk 0:02:44]}  Re8 {[%clk 0:02:46]} 13. Nc4 {[%clk 0:02:37]}  Ne4 {[%clk 0:02:41]} 14. a5 {[%clk 0:02:17]}  b5 {[%clk 0:02:41]} 15. Ncd2 {[%clk 0:02:17]}  e5 {[%clk 0:02:35]} 16. dxe5 {[%clk 0:02:08]}  dxe5 {[%clk 0:02:35]} 17. Nxe4 {[%clk 0:02:06]}  Bxe4 {[%clk 0:02:36]} 18. Qd2 {[%clk 0:01:56]}  Qc7 {[%clk 0:02:28]} 19. Red1 {[%clk 0:01:52]}  Red8 {[%clk 0:02:23]} 20. Qe1 {[%clk 0:01:52]}  c4 {[%clk 0:02:21]} 21. Nd2 {[%clk 0:01:41]}  Bb7 {[%clk 0:02:14]} 22. Bf3 {[%clk 0:01:39]}  Nc5 {[%clk 0:02:14]} 23. Be2 {[%clk 0:01:21]}  f5 {[%clk 0:02:09]} 24. h4 {[%clk 0:01:04]}  Qc6 {[%clk 0:02:08]} 25. Bf3 {[%clk 0:00:59]}  e4 {[%clk 0:02:08]} 26. Be2 {[%clk 0:00:59]}  Nd3 {[%clk 0:02:08]} 27. Bxd3 {[%clk 0:00:59]}  exd3 {[%clk 0:02:09]} 28. f3 {[%clk 0:00:56]}  Re8 {[%clk 0:02:08]} 29. Qf2 {[%clk 0:00:56]}  Re6 {[%clk 0:02:01]} 30. e4 {[%clk 0:00:51]}  fxe4 {[%clk 0:01:59]} 31. Nxe4 {[%clk 0:00:52]}  Rf8 {[%clk 0:01:53]} 32. Qd2 {[%clk 0:00:42]}  Rxe4 {[%clk 0:01:45]} 33. fxe4 {[%clk 0:00:41]}  Qc5+ {[%clk 0:01:45]} 34. Kh1 {[%clk 0:00:37]}  Bxe4 {[%clk 0:01:44]} 35. Bg1 {[%clk 0:00:35]}  Qe7 {[%clk 0:01:43]} 36. Qg5 {[%clk 0:00:32]}  Bf6 {[%clk 0:01:41]} 37. Qc5 {[%clk 0:00:28]}  Qd7 {[%clk 0:01:39]} 38. Rd2 {[%clk 0:00:15]}  Qh3+ {[%clk 0:01:38]} 39. Bh2 {[%clk 0:00:12]}  Qxh4 {[%clk 0:01:34]} 40. Qe3 {[%clk 0:00:04]}  Bg5 {[%clk 0:01:33]} 41. Qh3 {[%clk 0:00:02]}  Qxh3 {[%clk 0:01:32]} 0-1

[Event "January 9 Early 2024"]
[Site "https://www.chess.com"]
[Date "2024.01.11"]
[Round "1"]
[White "Murzin, Volodar"]
[Black "Poeta, Caio Medeiros"]
[Result "1-0"]
[Board "125"]
[TimeControl "180+1"]
[WhiteFideId "44155573"]
[BlackFideId "2142660"]
[WhiteElo "2900"]
[BlackElo "2479"]
[WhiteTeam "FID"]
[BlackTeam "BRA"]
[WhiteClock "0:00:42"]
[BlackClock "0:00:04"]

1. d4 {[%clk 0:03:00]}  d5 {[%clk 0:02:59]} 2. f3 {[%clk 0:03:01]}  Nf6 {[%clk 0:02:57]} 3. Nc3 {[%clk 0:02:59]}  g6 {[%clk 0:02:56]} 4. e4 {[%clk 0:02:56]}  dxe4 {[%clk 0:02:50]} 5. fxe4 {[%clk 0:02:57]}  Bg7 {[%clk 0:02:50]} 6. Nf3 {[%clk 0:02:51]}  O-O {[%clk 0:02:50]} 7. Bc4 {[%clk 0:02:50]}  c5 {[%clk 0:02:50]} 8. d5 {[%clk 0:02:43]}  b5 {[%clk 0:02:39]} 9. Bxb5 {[%clk 0:02:34]}  Nxe4 {[%clk 0:02:38]} 10. Nxe4 {[%clk 0:02:29]}  Qa5+ {[%clk 0:02:38]} 11. Nc3 {[%clk 0:02:25]}  Bxc3+ {[%clk 0:02:36]} 12. bxc3 {[%clk 0:02:25]}  Qxb5 {[%clk 0:02:36]} 13. Kf2 {[%clk 0:02:24]}  Bg4 {[%clk 0:02:28]} 14. Re1 {[%clk 0:02:23]}  Re8 {[%clk 0:02:26]} 15. Qd3 {[%clk 0:01:48]}  c4 {[%clk 0:02:23]} 16. Qd4 {[%clk 0:01:48]}  Bxf3 {[%clk 0:02:21]} 17. Bh6 {[%clk 0:01:47]}  f6 {[%clk 0:02:09]} 18. gxf3 {[%clk 0:01:36]}  Nd7 {[%clk 0:02:04]} 19. Rab1 {[%clk 0:01:26]}  Qa6 {[%clk 0:01:47]} 20. Re6 {[%clk 0:01:13]}  Qxa2 {[%clk 0:01:39]} 21. Rb7 {[%clk 0:01:08]}  Qxc2+ {[%clk 0:01:38]} 22. Kg3 {[%clk 0:01:06]}  Rad8 {[%clk 0:01:13]} 23. d6 {[%clk 0:01:03]}  Ne5 {[%clk 0:00:44]} 24. Rxe5 {[%clk 0:00:48]}  fxe5 {[%clk 0:00:08]} 25. Qxe5 {[%clk 0:00:44]}  Kf7 {[%clk 0:00:03]} 26. Rxe7+ {[%clk 0:00:41]}  Rxe7 {[%clk 0:00:03]} 27. Qxe7+ {[%clk 0:00:41]}  Kg8 {[%clk 0:00:04]} 28. Qg7# {[%clk 0:00:42]} 1-0

[Event "January 9 Early 2024"]
[Site "https://www.chess.com"]
[Date "2024.01.11"]
[Round "1"]
[White "Krishnan, Ritvik"]
[Black "Livaic, Leon"]
[Result "0-1"]
[Board "127"]
[TimeControl "180+1"]
[WhiteFideId "45055297"]
[BlackFideId "14531534"]
[WhiteElo "2490"]
[BlackElo "2917"]
[WhiteTeam "IND"]
[BlackTeam "CRO"]
[WhiteClock "0:00:06"]
[BlackClock "0:00:44"]

1. d4 {[%clk 0:03:00]}  Nf6 {[%clk 0:02:59]} 2. c4 {[%clk 0:03:00]}  g6 {[%clk 0:03:00]} 3. Nc3 {[%clk 0:03:01]}  Bg7 {[%clk 0:03:00]} 4. e4 {[%clk 0:03:01]}  d6 {[%clk 0:03:01]} 5. h3 {[%clk 0:03:01]}  O-O {[%clk 0:03:00]} 6. Be3 {[%clk 0:03:02]}  e5 {[%clk 0:03:00]} 7. d5 {[%clk 0:03:01]}  Na6 {[%clk 0:03:01]} 8. Nf3 {[%clk 0:03:02]}  Nc5 {[%clk 0:02:58]} 9. Nd2 {[%clk 0:03:01]}  a5 {[%clk 0:02:52]} 10. g4 {[%clk 0:02:59]}  c6 {[%clk 0:02:49]} 11. Be2 {[%clk 0:02:55]}  Bd7 {[%clk 0:02:31]} 12. g5 {[%clk 0:02:53]}  Ne8 {[%clk 0:02:16]} 13. h4 {[%clk 0:02:53]}  f5 {[%clk 0:02:05]} 14. gxf6 {[%clk 0:02:51]}  Nxf6 {[%clk 0:02:02]} 15. h5 {[%clk 0:02:40]}  gxh5 {[%clk 0:02:00]} 16. Bxh5 {[%clk 0:02:41]}  Nd3+ {[%clk 0:01:59]} 17. Kf1 {[%clk 0:02:38]}  Qe7 {[%clk 0:01:26]} 18. Qc2 {[%clk 0:01:29]}  Nxh5 {[%clk 0:01:21]} 19. Rxh5 {[%clk 0:01:30]}  Nf4 {[%clk 0:01:04]} 20. Rh2 {[%clk 0:01:27]}  Bh3+ {[%clk 0:01:00]} 21. Ke1 {[%clk 0:00:26]}  Qg5 {[%clk 0:00:53]} 22. Bxf4 {[%clk 0:00:10]}  Qxf4 {[%clk 0:00:53]} 23. Rxh3 {[%clk 0:00:05]}  Qxf2+ {[%clk 0:00:53]} 24. Kd1 {[%clk 0:00:05]}  Qg1+ {[%clk 0:00:53]} 25. Ke2 {[%clk 0:00:06]}  Qg2+ {[%clk 0:00:49]} 26. Kd1 {[%clk 0:00:06]}  Qxh3 {[%clk 0:00:46]} 27. Kc1 {[%clk 0:00:06]}  Bh6 {[%clk 0:00:44]} 0-1

[Event "January 9 Early 2024"]
[Site "https://www.chess.com"]
[Date "2024.01.11"]
[Round "1"]
[White "Glashausser, Sho"]
[Black "Ismagilov, Damir"]
[Result "0-1"]
[Board "128"]
[TimeControl "180+1"]
[WhiteFideId "30908329"]
[BlackFideId "34199982"]
[WhiteElo "2160"]
[BlackElo "2564"]
[WhiteTeam "USA"]
[BlackTeam "RUS"]
[WhiteClock "0:00:02"]
[BlackClock "0:00:54"]

1. Nf3 {[%clk 0:03:00]}  g6 {[%clk 0:02:55]} 2. g3 {[%clk 0:02:58]}  Bg7 {[%clk 0:02:56]} 3. Bg2 {[%clk 0:02:58]}  Nf6 {[%clk 0:02:55]} 4. O-O {[%clk 0:02:57]}  O-O {[%clk 0:02:56]} 5. d4 {[%clk 0:02:45]}  d6 {[%clk 0:02:54]} 6. c4 {[%clk 0:02:42]}  Bg4 {[%clk 0:02:48]} 7. Nc3 {[%clk 0:02:35]}  c6 {[%clk 0:02:45]} 8. b3 {[%clk 0:02:19]}  Qc8 {[%clk 0:02:43]} 9. Re1 {[%clk 0:02:13]}  Bh3 {[%clk 0:02:42]} 10. Bh1 {[%clk 0:02:13]}  h6 {[%clk 0:02:37]} 11. Bb2 {[%clk 0:02:13]}  Nbd7 {[%clk 0:02:35]} 12. Qd2 {[%clk 0:01:59]}  Kh7 {[%clk 0:02:33]} 13. e4 {[%clk 0:01:55]}  e5 {[%clk 0:02:32]} 14. Rad1 {[%clk 0:01:39]}  Qc7 {[%clk 0:02:23]} 15. d5 {[%clk 0:01:33]}  c5 {[%clk 0:02:13]} 16. a3 {[%clk 0:01:20]}  Nh5 {[%clk 0:02:08]} 17. Qd3 {[%clk 0:00:58]}  Bg4 {[%clk 0:02:02]} 18. Rc1 {[%clk 0:00:52]}  f5 {[%clk 0:01:55]} 19. Nh4 {[%clk 0:00:38]}  f4 {[%clk 0:01:37]} 20. f3 {[%clk 0:00:37]}  Bh3 {[%clk 0:01:35]} 21. g4 {[%clk 0:00:35]}  Qd8 {[%clk 0:01:30]} 22. Ng2 {[%clk 0:00:32]}  Nhf6 {[%clk 0:01:20]} 23. Nb5 {[%clk 0:00:17]}  Nb6 {[%clk 0:01:14]} 24. b4 {[%clk 0:00:16]}  cxb4 {[%clk 0:01:07]} 25. axb4 {[%clk 0:00:16]}  a6 {[%clk 0:01:06]} 26. Nxd6 {[%clk 0:00:13]}  Nxg4 {[%clk 0:01:06]} 27. fxg4 {[%clk 0:00:10]}  f3 {[%clk 0:01:06]} 28. Rf1 {[%clk 0:00:02]}  fxg2 {[%clk 0:00:54]} 29. Bxg2 {[%clk 0:00:03]}  Bxg2 {[%clk 0:00:55]} 30. Kxg2 {[%clk 0:00:03]}  Na4 {[%clk 0:00:55]} 31. Rxf8 {[%clk 0:00:03]}  Qxf8 {[%clk 0:00:55]} 32. Bxe5 {[%clk 0:00:02]}  Bxe5 {[%clk 0:00:54]} 0-1

[Event "January 9 Early 2024"]
[Site "https://www.chess.com"]
[Date "2024.01.11"]
[Round "1"]
[White "Bjerre, Jonas Buhl"]
[Black "Tifferet, Shakked"]
[Result "1-0"]
[Board "129"]
[TimeControl "180+1"]
[WhiteFideId "1444948"]
[BlackFideId "2811529"]
[WhiteElo "2954"]
[BlackElo "2505"]
[WhiteTeam "DEN"]
[BlackTeam "ISR"]
[WhiteClock "0:01:11"]
[BlackClock "0:00:01"]

1. d4 {[%clk 0:03:00]}  Nf6 {[%clk 0:02:57]} 2. c4 {[%clk 0:03:00]}  e6 {[%clk 0:02:57]} 3. Nf3 {[%clk 0:03:00]}  b6 {[%clk 0:02:54]} 4. g3 {[%clk 0:02:59]}  Bb7 {[%clk 0:02:54]} 5. Bg2 {[%clk 0:02:59]}  Bb4+ {[%clk 0:02:53]} 6. Bd2 {[%clk 0:02:58]}  Bxd2+ {[%clk 0:02:53]} 7. Qxd2 {[%clk 0:02:57]}  O-O {[%clk 0:02:53]} 8. O-O {[%clk 0:02:55]}  d6 {[%clk 0:02:53]} 9. Qf4 {[%clk 0:02:51]}  Nbd7 {[%clk 0:02:47]} 10. Nc3 {[%clk 0:02:51]}  Qe7 {[%clk 0:02:45]} 11. e4 {[%clk 0:02:47]}  e5 {[%clk 0:02:44]} 12. Qe3 {[%clk 0:02:47]}  Rfe8 {[%clk 0:02:40]} 13. Rfe1 {[%clk 0:02:44]}  Qf8 {[%clk 0:02:34]} 14. Qd2 {[%clk 0:02:34]}  Re7 {[%clk 0:02:29]} 15. Rac1 {[%clk 0:02:30]}  exd4 {[%clk 0:02:16]} 16. Nxd4 {[%clk 0:02:27]}  Rae8 {[%clk 0:02:15]} 17. f3 {[%clk 0:02:20]}  a6 {[%clk 0:02:12]} 18. Nd5 {[%clk 0:02:15]}  Bxd5 {[%clk 0:01:57]} 19. cxd5 {[%clk 0:02:15]}  Rc8 {[%clk 0:01:47]} 20. Nc6 {[%clk 0:02:09]}  Ree8 {[%clk 0:01:38]} 21. Bh3 {[%clk 0:02:06]}  Ra8 {[%clk 0:01:32]} 22. Nd4 {[%clk 0:02:00]}  Ra7 {[%clk 0:01:19]} 23. Rc3 {[%clk 0:01:49]}  Nc5 {[%clk 0:00:44]} 24. b4 {[%clk 0:01:47]}  Ncxe4 {[%clk 0:00:44]} 25. fxe4 {[%clk 0:01:46]}  Nxe4 {[%clk 0:00:44]} 26. Rce3 {[%clk 0:01:36]}  Nxd2 {[%clk 0:00:10]} 27. Rxe8 {[%clk 0:01:35]}  Ra8 {[%clk 0:00:11]} 28. Rxf8+ {[%clk 0:01:35]}  Kxf8 {[%clk 0:00:11]} 29. Rc1 {[%clk 0:01:36]}  Ra7 {[%clk 0:00:09]} 30. Bg2 {[%clk 0:01:32]}  b5 {[%clk 0:00:08]} 31. Nc6 {[%clk 0:01:28]}  Ra8 {[%clk 0:00:05]} 32. Na5 {[%clk 0:01:28]}  Ra7 {[%clk 0:00:04]} 33. Rc2 {[%clk 0:01:25]}  Nb1 {[%clk 0:00:02]} 34. Bh3 {[%clk 0:01:18]}  g6 {[%clk 0:00:01]} 35. Bd7 {[%clk 0:01:16]}  Ke7 {[%clk 0:00:02]} 36. Bc6 {[%clk 0:01:16]}  Kf6 {[%clk 0:00:02]} 37. Kf2 {[%clk 0:01:13]}  Na3 {[%clk 0:00:02]} 38. Rc3 {[%clk 0:01:12]}  Nb1 {[%clk 0:00:02]} 39. Rd3 {[%clk 0:01:12]}  Ke7 {[%clk 0:00:01]} 40. Ke3 {[%clk 0:01:12]}  f5 {[%clk 0:00:01]} 41. Ke2 {[%clk 0:01:11]}  Kf6 {[%clk 0:00:01]} 42. Kd1 {[%clk 0:01:11]} 1-0